Cogmind - Beta 12 @@@ ROGUE MODE // 2023.03.13 @ 02:45:57 Player: Infomantis Result: Destroyed by S-43 Plague with Heavy Machine Gun Performance ------------- Evolutions (9) 4500 Regions Visited (31) 6200 Robots Destroyed (233) 1165 Value Destroyed (12581) 12581 Prototype IDs (57) 1140 Alien Tech Used (0) 0 Bonus (10565) 10565 TOTAL SCORE: 36151 Bonus ------- High Alert Combat Kills 942 Follower Combat Kills 4235 Entered Garrisons 800 Entered DSFs 500 Network Hubs Disabled 400 Aligned with FarCom 300 Met Data Miner 300 Met Warlord at Base 500 MAIN.C Attacked Warlord 500 Warlord Defense Kills 126 Built Enhanced Grunts 300 A7 Reached Mainframe 300 Met R17 at Cetus 500 Met Warlord at Research 2000 Friendly Fire -1138 Cogmind --------- Core Integrity 0/1600 Matter 300/300 Energy 99/100 System Corruption 3% Temperature Cool (0) Movement Core (50) Location -1/Garrison Parts ------- > --- POWER (4) -------- (None) > --- PROPULSION (7) --- (None) > --- UTILITY (11) ----- (None) > --- WEAPON (3) ------- (None) > --- INVENTORY (5) ---- Advanced Force Field Advanced Force Field Combat Drone Bay (2/2) KE Penetrator Peak State ------------ > --- POWER ------------ Quantum Reactor Light Quantum Reactor Vortex Chain Reactor > --- PROPULSION ------- Myomer Leg Myomer Leg Biometal Leg Biometal Leg Biometal Leg Biometal Leg Enhanced Biometal Leg > --- UTILITY ---------- High-capacity Storage Unit 0b10 Decoder Chip [Skirmisher] Improved Targeting Computer Experimental Target Analyzer Core Analyzer Nanoactuators Nanoactuators Advanced Reaction Control System Layered Medium Armor Plating Advanced Hacking Suite Advanced Corruption Screen > --- WEAPON ----------- Centrium Greatsword Plasma Lance > --- INVENTORY -------- Reinforced Fission Core Myomer Leg Biometal Leg Centrium Leg Advanced Cooling System Advanced Cooling System Compact Matter Pod Encrypted Comm Array 0b10 Decoder Chip [Skirmisher] Nanoactuators Advanced Reaction Control System Experimental Cloaking Device Focal Shield Advanced System Shield Combat Drone Bay Long-range Proton Cannon Linear Accelerator Linear Accelerator Gamma Bomb Array [Rating: 191] Favorites ----------- Power Micro Fission Core Engine Light Angular Momentum Engine Power Core Micro Fission Core Reactor Particle Reactor Propulsion Myomer Leg Treads Centrium Heavy Treads Leg Myomer Leg Wheel Armored Huge Wheel Flight Unit Cooled Cesium-ion Thruster Utility Advanced Hacking Suite Device Advanced Cooling System Storage High-capacity Storage Unit Processor Improved Targeting Computer Hackware Advanced Hacking Suite Protection Centrium Medium Armor Plating Weapon Plasma Lance Energy Gun Advanced Variable Charge Gun Energy Cannon Cooled Plasma Cannon Ballistic Gun KE Penetrator Ballistic Cannon Gauss Cannon Launcher Heavy Rocket Launcher Impact Weapon Heavy Hammer Slashing Weapon Centrium Greatsword Piercing Weapon Plasma Lance Build | -11 -10 -10 -10 -9 -8 -7 -7 -7 -7 -7 -7 -6 -6 -6 -6 -6 -6 -5 -5 -5 -5 -5 -4 -4 -4 -4 -3 -3 -2 -1 -1 ------- Run | Jun Mat Min Exi Min Mat Fac Gar Fac Low Low Dat Pro Fac Gar Fac DSF Gar Fac Ext Cet Arc Hub Fac Upp Upp War Pro Res Res Acc Gar Slots Evolved 18 | . . . . . 4 2 . . . . . . 2 . . . . 2 . . . . 2 . . . . 2 2 2 . Power 3 | . . . . . . . . . . . . . 1 . . . . . . . . . . . . . . . 1 1 . Propulsion 5 | . . . . . 1 1 . . . . . . 1 . . . . 1 . . . . . . . . . . 1 . . Utility 9 | . . . . . 2 1 . . . . . . . . . . . 1 . . . . 2 . . . . 2 . 1 . Weapon 1 | . . . . . 1 . . . . . . . . . . . . . . . . . . . . . . . . . . Parts Attached 448 | 8 1 4 1 4 26 8 13 2 9 1 3 12 54 2 7 7 9 23 45 20 13 7 54 3 4 20 10 7 17 24 30 Power 49 | 1 . 3 . 1 1 . 2 . . . . 1 6 . 1 2 . 1 8 3 4 . 4 1 . 2 . . 1 4 3 Engine 12 | 1 . 2 . 1 1 . . . . . . . 3 . 1 . . . 2 1 . . . . . . . . . . . Core 25 | . . 1 . . . . 2 . . . . 1 3 . . 2 . 1 6 1 . . 4 1 . 1 . . . 1 1 Reactor 12 | . . . . . . . . . . . . . . . . . . . . 1 4 . . . . 1 . . 1 3 2 Propulsion 103 | 2 1 1 . 1 13 1 2 1 1 . . 2 10 2 2 1 2 3 14 5 . 2 10 1 1 4 2 2 5 2 10 Treads 16 | . . . . . 7 . . . . . . 1 4 . . . . . . 3 . 1 . . . . . . . . . Leg 83 | 2 1 1 . 1 6 1 2 1 1 . . 1 2 2 2 1 2 3 14 2 . 1 10 1 1 4 2 2 5 2 10 Wheel 3 | . . . . . . . . . . . . . 3 . . . . . . . . . . . . . . . . . . Hover . | . . . . . . . . . . . . . . . . . . . . . . . . . . . . . . . . Flight 1 | . . . . . . . . . . . . . 1 . . . . . . . . . . . . . . . . . . Utility 188 | 2 . . 1 . 6 4 5 . 6 . . 6 25 . 3 2 2 15 12 7 7 4 29 1 3 12 3 5 9 10 9 Device 102 | 1 . . . . . 2 2 . 4 . . 5 18 . 2 1 1 9 4 2 5 1 8 1 3 9 3 4 6 6 5 Storage 8 | 1 . . 1 . . . 1 . . . . . . . . . 1 3 . . . . . . . . . 1 . . . Processor 15 | . . . . . 1 1 . . . . . . 1 . . . . 3 . . . . 2 . . 2 . . 2 2 1 Hackware 17 | . . . . . . . . . . . . . 1 . . . . . 1 . . . 14 . . . . . . 1 . Protection 46 | . . . . . 5 1 2 . 2 . . 1 5 . 1 1 . . 7 5 2 3 5 . . 1 . . 1 1 3 Artifact . | . . . . . . . . . . . . . . . . . . . . . . . . . . . . . . . . Weapon 108 | 3 . . . 2 6 3 4 1 2 1 3 3 13 . 1 2 5 4 11 5 2 1 11 . . 2 5 . 2 8 8 Energy Gun 24 | 1 . . . . 1 1 1 . . . . 1 . . 1 1 2 3 4 2 1 . 4 . . . . . . . 1 Energy Cannon 12 | . . . . . . 1 . . . 1 1 . 1 . . . . 1 . . . 1 2 . . 1 1 . . 1 1 Ballistic Gun 29 | 2 . . . 2 2 1 2 . 1 . 1 1 6 . . . . . . 2 . . 4 . . . 1 . . . 4 Ballistic Cannon 13 | . . . . . 3 . . 1 . . 1 . 1 . . . . . 5 . . . . . . . . . . 2 . Launcher 11 | . . . . . . . . . 1 . . . 2 . . . 2 . 1 . . . . . . . . . 1 2 2 Special Weapon . | . . . . . . . . . . . . . . . . . . . . . . . . . . . . . . . . Impact Weapon 1 | . . . . . . . . . . . . 1 . . . . . . . . . . . . . . . . . . . Slashing Weapon 8 | . . . . . . . 1 . . . . . 3 . . 1 . . . . . . 1 . . . 2 . . . . Piercing Weapon 10 | . . . . . . . . . . . . . . . . . 1 . 1 1 1 . . . . 1 1 . 1 3 . Special Melee Weapon . | . . . . . . . . . . . . . . . . . . . . . . . . . . . . . . . . Unidentified Prototypes 17 | . . . . . 1 . . . . . . 1 1 . 1 . 1 . . 4 . 1 2 . . 3 . 1 . 1 . Corrupted Parts 4 | . . . . . . . . . . . . . . . . . . 1 . 1 . . . 1 . . 1 . . . . System Corruption 24 | . . . . . . . . . . . . . . . . . . 5 . 8 . . . 2 . . 9 . . . . Parts Lost 130 | . . . . 1 5 . . . 1 . . 10 20 . 1 . 1 3 13 5 . 3 13 . 3 3 8 4 . 13 23 Power 21 | . . . . . 1 . . . . . . 1 3 . 1 . . 1 3 . . . 3 . . . . . . 4 4 Propulsion 39 | . . . . . 1 . . . . . . 2 9 . . . . . 4 4 . . 5 . 1 1 1 1 . 2 8 Utility 45 | . . . . . 3 . . . . . . 5 4 . . . 1 2 3 1 . 1 2 . 2 2 4 3 . 4 8 Weapon 25 | . . . . 1 . . . . 1 . . 2 4 . . . . . 3 . . 2 3 . . . 3 . . 3 3 Highest Loss Streak 22 | . . . . 1 2 . . . 1 . . 4 4 . 1 . 1 2 3 4 . 3 7 . 3 2 8 4 . 6 22 To Critical Strikes 6 | . . . . . . . . . . . . . 1 . . . . . 2 . . . . . . . . . . 1 2 Average Slot Usage (%) 91 | . 100 100 100 98 94 41 90 100 99 100 78 90 80 92 92 99 99 98 95 89 80 81 86 100 96 94 92 85 90 92 91 Engine 1 | . 14 8 . 2 7 . . . . . . . 1 13 12 6 . . . 5 3 . . . . . . . . . . Core 6 | . . 5 14 11 . . 6 7 7 7 7 7 8 . . 6 13 10 9 5 3 . 5 10 10 6 . . . . 6 Reactor 1 | . . . . . . . . . . . . . . . . . . . . . 3 11 3 . . 1 5 4 7 11 7 Treads 3 | . . . . . 17 . . . . . . 3 8 7 6 6 1 . . 6 17 16 3 . . . . . . . . Leg 23 | . 28 28 28 28 9 30 30 30 30 30 30 25 5 10 13 25 30 35 33 19 . . 21 31 30 31 31 28 29 27 25 Device 12 | . 14 14 14 14 8 2 4 7 13 15 15 18 16 13 13 20 19 12 6 7 12 11 10 12 12 13 20 20 20 17 12 Storage 6 | . 14 14 14 14 8 . 6 7 7 7 7 7 6 6 6 6 6 6 5 5 5 5 5 5 5 5 5 8 4 4 3 Processor 4 | . . . . . 4 2 7 7 1 . . . 2 . . . . 6 11 5 . . 4 5 5 5 5 4 12 15 11 Hackware 3 | . . . . . . . . . . . . . . 6 6 . . . 4 5 5 5 11 10 10 8 5 4 4 6 7 Protection 6 | . . . . . 11 . 11 15 15 15 15 5 3 6 6 6 6 5 3 8 8 10 5 7 5 5 5 3 . . 5 Energy Gun 5 | . . . . . 3 4 7 7 . . . 3 1 . 1 11 12 7 7 8 12 16 4 10 10 5 4 . . . 2 Ballistic Gun 6 | . 28 28 28 26 17 . 13 12 9 7 . 7 9 13 11 1 . . . 2 . . 4 5 5 5 4 . . . 5 Ballistic Cannon 1 | . . . . . 4 . . 2 7 7 . 3 . . . . . . 4 1 . . . . . . . . . 2 . Piercing Weapon 1 | . . . . . . . . . . . . . . . . . 4 5 1 1 3 . . . . 3 . 4 4 3 1 Naked Turns 20 | . . . . . . . . . . . . . . . . . . . . . . . . . . . . . . . 20 Heaviest Build 164 | 12 12 18 19 20 53 16 71 73 77 80 80 80 52 48 52 59 86 89 99 97 112 108 108 94 94 120 119 99 107 154 164 Greatest Support 240 | 20 20 25 25 25 76 20 83 83 83 80 80 80 78 28 75 75 92 92 102 240 240 240 240 143 143 138 146 153 192 197 200 Greatest Overweight (x) 4 | . . . . . 2 2 . . 1 . . . 4 1 1 . . 1 1 1 . . 3 . . . . . . . 2 Average Overweight (x) . | . . . . . . . . . . . . . . 1 . . . . . . . . . . . . . . . . . Largest Inventory Capacity 20 | 8 8 8 10 10 10 5 10 10 10 10 10 10 10 10 10 10 20 20 20 20 20 20 20 20 20 20 20 20 20 20 20 Average Capacity 15 | 7 8 8 9 10 9 5 9 10 10 10 10 10 10 10 10 10 16 20 20 20 20 20 20 20 20 20 20 20 20 20 19 Most Carried 20 | 6 8 8 9 10 10 5 10 10 10 10 10 10 10 10 10 10 20 20 20 20 20 20 20 20 20 20 20 20 20 20 20 Average Carried 14 | 3 5 8 8 9 9 4 8 10 9 10 10 9 9 9 9 9 16 19 19 19 19 20 18 19 19 19 19 19 18 18 17 Final Capacity 20 | 8 8 8 10 10 5 5 10 10 10 10 10 10 10 10 10 10 20 20 20 20 20 20 20 20 20 20 20 20 20 20 5 Final Carried 20 | 5 8 8 9 10 5 4 10 10 10 10 10 10 10 10 7 10 20 20 20 20 20 20 19 20 20 20 17 20 20 15 5 Class Distribution -------------------- 38% | Scavenger-Mutant 18% | Mutant 13% | Scavenger-Tank 7% | Scavenger-Skirmisher 4% | Tank 3% | Scavenger-Gladiator Dominant Class ---------------- Mutant | -10/Materials Mutant | -10/Mines Mutant | -10/Exiles Scavenger-Mutant | -9/Mines Tank | -8/Materials Mutant | -7/Factory Mutant | -7/Garrison Scavenger-Tank | -7/Factory Tank | -7/Lower Caves Mutant | -7/Lower Caves Mutant | -7/Data Miner Tank | -6/Proximity Caves Scavenger-Mutant | -6/Factory Scavenger-Mutant | -6/Garrison Scavenger-Mutant | -6/Factory Mutant | -6/DSF Scavenger-Mutant | -6/Garrison Scavenger-Mutant | -5/Factory Scavenger-Skirmisher | -5/Extension Scavenger-Mutant | -5/Cetus Scavenger-Mutant | -5/Archives Scavenger-Tank | -5/Hub_04(d) Scavenger-Mutant | -4/Factory Scavenger-Tank | -4/Upper Caves Scavenger-Tank | -4/Upper Caves Scavenger-Mutant | -4/Warlord Scavenger-Mutant | -3/Proximity Caves Scavenger-Mutant | -3/Research Scavenger-Gladiator | -2/Research Generator-Gladiator | -1/Access Scavenger-Tank | -1/Garrison Resources | -11 -10 -10 -10 -9 -8 -7 -7 -7 -7 -7 -7 -6 -6 -6 -6 -6 -6 -5 -5 -5 -5 -5 -4 -4 -4 -4 -3 -3 -2 -1 -1 ----------- Run | Jun Mat Min Exi Min Mat Fac Gar Fac Low Low Dat Pro Fac Gar Fac DSF Gar Fac Ext Cet Arc Hub Fac Upp Upp War Pro Res Res Acc Gar Matter Collected 8686 | 283 67 88 . 77 727 80 506 190 271 38 . 564 785 37 . 215 184 239 759 312 177 58 983 48 139 315 170 1 384 379 610 Remotely . | . . . . . . . . . . . . . . . . . . . . . . . . . . . . . . . . Salvage Created 11459 | 83 95 170 . 46 731 73 321 229 216 45 . 801 773 . . 242 631 439 1130 160 280 589 1798 123 236 41 433 . 71 1159 544 Parts 487 | 5 3 13 . 2 38 5 16 11 12 1 . 16 48 . . 5 21 22 33 11 21 26 78 6 5 . 19 . 2 44 24 Haulers Intercepted 2 | . . . . . . . . . . . . . . . . 2 . . . . . . . . . . . . . . . Recyclers Shooed 7 | . . 1 . . . . . . . . . . 2 . . . . . . . . 1 2 . . . . . . 1 . Parts Field Recycled . | . . . . . . . . . . . . . . . . . . . . . . . . . . . . . . . . Retrieved Matter . | . . . . . . . . . . . . . . . . . . . . . . . . . . . . . . . . Parts Self-Destructed 66 | . . . . . . . . . 12 1 . 15 . . . . . . . . . . . 4 10 . 24 . . . . Prevented 6 | . . . . . . . . . . . . . . . . . . . . . . . . 1 1 . 4 . . . . Kills | -11 -10 -10 -10 -9 -8 -7 -7 -7 -7 -7 -7 -6 -6 -6 -6 -6 -6 -5 -5 -5 -5 -5 -4 -4 -4 -4 -3 -3 -2 -1 -1 ------- Run | Jun Mat Min Exi Min Mat Fac Gar Fac Low Low Dat Pro Fac Gar Fac DSF Gar Fac Ext Cet Arc Hub Fac Upp Upp War Pro Res Res Acc Gar Combat Hostiles Destroyed 188 | . 2 4 . 3 16 . 5 3 8 1 . 18 15 . . 1 13 7 20 3 . 6 27 2 5 1 9 . . 13 6 Melee 20 | . . . . . . . . . . . . . 5 . . . 2 1 3 . . 1 . . . . 2 . . 5 1 Guns 98 | . 2 4 . 3 14 . 5 2 3 . . 3 7 . . 1 2 4 5 1 . 5 20 2 4 1 5 . . . 5 Cannons 42 | . . . . . 2 . . 1 1 . . 12 2 . . . . 2 8 2 . . 6 . . . 2 . . 4 . AOE 21 | . . . . . . . . . 4 . . . . . . . 9 . 4 . . . . . . . . . . 4 . Classes Destroyed 20 | 2 1 1 . . 5 2 2 1 . . . 3 1 . . 1 . . . . . . . . . 1 . . . . . Worker 8 | . . . . . . 2 . . . . . . . . . . . 1 . . . 2 . . . . . . . 3 . Builder 4 | . . . . . . . . . . . . . 1 . . . . . 1 . . . 2 . . . . . . . . Tunneler 4 | 1 . . . . . . . . . . . . 1 . . . . . . . . . 1 . . . . . . 1 . Hauler 2 | . . . . . . . . . . . . . . . . 2 . . . . . . . . . . . . . . . Recycler 6 | 1 . 1 . . 1 . . . . . . . . . . . . . . . . 1 1 . . . . . . 1 . Mechanic 2 | . . . . . . 1 . . . . . . . . . . . . . . . . . . . . . . 1 . . Operator 10 | . . . . . 1 . . . . . . . . . . . . . . . 8 1 . . . . . . . . . Watcher 5 | . . . . . . . . 2 . . . . . . . . . . . . . 1 1 . . . . . . 1 . Swarmer 41 | . . 3 . 3 . . . . 4 . . 2 2 . . . 8 . . 1 . . 3 . 3 . 6 . . 4 2 Grunt 65 | . 2 1 . . 10 . 1 1 4 . . 10 . . . 1 3 4 11 . . 1 9 . . . 1 . . 6 . Brawler 3 | . . . . . 1 . . . . . . 1 . . . . . . . . . . 1 . . . . . . . . Duelist 3 | . . . . . . . . . . . . 1 1 . . . . . . . . . 1 . . . . . . . . Protector 1 | . . . . . . . . . . . . 1 . . . . . . . . . . . . . . . . . . . Sentry 26 | . . . . . 3 . 3 2 . . . 2 4 . . . 1 . 5 . . 3 1 . . . . . . 2 . Demolisher 1 | . . . . . . . . . . . . . . . . . . . . . . . . . . 1 . . . . . Specialist 6 | . . . . . . . . . . . . . 4 . . . . . . . . 1 1 . . . . . . . . Hunter 21 | . . . . . 1 . . . . 1 . . 2 . . . . . 2 . . 1 4 2 2 . 2 . . 1 3 Programmer 18 | . . . . . . . 1 . . . . . 2 . . . 1 3 2 . . . 7 . . . . . . 1 1 Heavy 1 | . . . . . 1 . . . . . . . . . . . . . . . . . . . . . . . . . . Behemoth 1 | . . . . . . . . . . . . 1 . . . . . . . . . . . . . . . . . . . Cetus Guard 2 | . . . . . . . . . . . . . . . . . . . . 2 . . . . . . . . . . . Thug 2 | . . . . . . . . . . . . . . . . . . . 2 . . . . . . . . . . . . Infiltrator 1 | . . . . . . . 1 . . . . . . . . . . . . . . . . . . . . . . . . Best Kill Streak 9 | 2 2 3 . 3 5 3 1 2 4 1 . 5 3 . . 1 9 2 5 2 4 3 9 2 3 1 4 . 1 6 3 Combat Bots Only 9 | . 2 3 . 3 5 . 1 2 4 1 . 5 3 . . 1 9 2 5 2 . 2 6 2 3 1 4 . . 4 3 Max Kills in Single Turn 5 | 1 1 2 . 1 1 1 1 1 3 1 . 2 1 . . 1 3 1 2 1 1 2 2 1 2 1 1 . 1 5 1 Gunslinging 1 | . . 1 . . . . . . . . . . . . . . . . . . . . . . 1 . . . . . . Exploded 3 | . . . . . . . . . 3 . . . . . . . 3 . 2 . . . . . . . . . . 3 . Melee 1 | . . . . . . . . . . . . . 1 . . . 1 1 1 . . 1 . . . . 1 . . 1 1 Uniques/NPCs Destroyed . | . . . . . . . . . . . . . . . . . . . . . . . . . . . . . . . . Combat | -11 -10 -10 -10 -9 -8 -7 -7 -7 -7 -7 -7 -6 -6 -6 -6 -6 -6 -5 -5 -5 -5 -5 -4 -4 -4 -4 -3 -3 -2 -1 -1 -------- Run | Jun Mat Min Exi Min Mat Fac Gar Fac Low Low Dat Pro Fac Gar Fac DSF Gar Fac Ext Cet Arc Hub Fac Upp Upp War Pro Res Res Acc Gar Damage Taken 30786 | . 87 124 . 186 2389 38 624 408 371 62 . 1614 2621 29 . 101 673 1151 2911 775 99 2208 3617 . 1027 400 1334 596 47 3101 4193 Core 3962 | . 12 14 . 59 520 . 21 50 29 . . 216 258 . . 16 44 93 284 44 . 82 324 . 172 . 51 60 . 428 1185 Absorbed by Shields 673 | . . . . . . . . . . . . . . . . . . . . 82 . . . . . 90 103 . . . 398 Regen/Repaired (Parts) 534 | . . . . . . . . . . . . . . . . . . 35 . . . . . . . 499 . . . . . Core Remaining (%) 64 | 100 . . . 66 5 . . . . . . 54 . . . . 62 . . . . 49 . . . . 52 95 100 . . Volleys Fired 658 | 5 10 12 . 12 60 10 36 21 16 4 . 53 51 . . 13 17 20 52 16 4 22 112 3 16 24 21 . . 30 18 Largest 3 | 2 2 2 . 2 3 1 3 3 3 3 . 3 3 . . 2 2 2 3 3 3 3 3 3 3 3 3 . . 2 3 Hottest 480 | 40 40 40 . 40 144 68 132 147 147 171 . 203 157 . . 166 166 162 219 240 183 480 268 192 192 204 204 . . 132 160 Shots Fired 1460 | 10 20 24 . 14 160 10 67 54 36 8 . 154 100 . . 26 28 41 117 31 10 65 224 9 48 56 53 . . 53 42 Gun 1070 | 10 20 24 . 14 130 9 67 44 20 2 . 66 76 . . 26 22 34 61 26 10 65 167 9 48 40 42 . . . 38 Cannon 366 | . . . . . 30 1 . 10 13 6 . 88 23 . . . . 7 50 5 . . 57 . . 16 11 . . 49 . Launcher 24 | . . . . . . . . . 3 . . . 1 . . . 6 . 6 . . . . . . . . . . 4 4 Special . | . . . . . . . . . . . . . . . . . . . . . . . . . . . . . . . . Kinetic 813 | 10 20 24 . 14 145 . 56 39 26 4 . 89 87 . . 2 . . 37 16 3 . 106 3 15 24 21 . . 46 26 Thermal 582 | . . . . . 15 1 9 15 7 4 . 65 12 . . 24 22 41 74 15 7 65 118 6 33 16 21 . . . 12 Explosive 16 | . . . . . . . . . 3 . . . 1 . . . 6 . 6 . . . . . . . . . . . . Electromagnetic 49 | . . . . . . 9 2 . . . . . . . . . . . . . . . . . . 16 11 . . 7 4 Robot Hit Streak 22 | 4 9 13 . 3 8 3 11 10 9 6 . 22 8 . . 6 14 19 8 15 18 7 17 8 7 9 9 . . 12 8 Robot Miss Streak 10 | 1 1 2 . 3 9 1 10 2 5 . . 4 7 . . 2 4 2 4 5 2 3 7 . 4 2 3 . . 4 3 Penetration Max 1 | . . . . . . . . 1 1 . . 1 1 . . . . . . . . . 1 . 1 . . . . . 1 Secondary Targets 13 | . . 1 . 1 . . 1 . . . . . . . . . 1 1 . 1 . . 4 . 1 . 1 . . . 1 Max Gunslinging Chain 1 | . . 1 . 1 . . 1 . . . . . . . . . 1 1 . 1 . . 1 . 1 . 1 . . . 1 Shots Hit Robots 1007 | 6 15 19 . 7 102 6 38 30 21 4 . 103 93 1 . 17 35 32 80 20 16 40 148 7 26 33 42 . 1 34 31 Core Hits 543 | 4 3 7 . 4 46 3 17 13 12 . . 40 47 . . 7 32 13 49 10 8 21 83 3 9 17 21 . . 41 33 Critical Kills 8 | . . 1 . . . . . 1 . 1 . 2 . . . . . . 1 1 . . 1 . . . . . . . . Critical Parts Destroyed 13 | . . . . . . . 1 1 . 1 . 3 1 . . . . . 1 1 . . 2 . . 1 . . . . 1 Critical Strikes 63 | . . 1 . . 3 . 1 4 2 2 . 8 2 . . 1 9 3 10 3 2 . 4 . . 2 1 . . 3 2 Burn 14 | . . . . . 2 . . 1 . . . . . . . 1 3 . 3 1 . . 1 . . 1 1 . . . . Meltdown 2 | . . . . . . . . . . 1 . 1 . . . . . . . . . . . . . . . . . . . Destroy 21 | . . 1 . . . . 1 2 . 1 . 4 1 . . . . . 4 2 . . 3 . . 1 . . . . 1 Blast 10 | . . . . . 1 . . 1 2 . . 3 . . . . . . 2 . . . . . . . . . . 1 . Sever 3 | . . . . . . . . . . . . . 1 . . . . . . . . . . . . . . . . 2 . Impale 13 | . . . . . . . . . . . . . . . . . 6 3 1 . 2 . . . . . . . . . 1 Melee Attacks 155 | . . . . . . . . . . . . . 24 4 . 1 35 16 10 7 10 . 1 . . . 8 6 2 23 8 Impact 2 | . . . . . . . . . . . . . 2 . . . . . . . . . . . . . . . . . . Slashing 55 | . . . . . . . . . . . . . 22 4 . 1 3 . . . . . 1 . . . 3 5 2 14 . Piercing 98 | . . . . . . . . . . . . . . . . . 32 16 10 7 10 . . . . . 5 1 . 9 8 Sneak Attacks 18 | . . . . . . . . . . . . . 3 1 . . . 1 . . 9 . . . . . . . 1 3 . Combat Hostiles . | . . . . . . . . . . . . . . . . . . . . . . . . . . . . . . . . Follow-up Attacks 2 | . . . . . . . . . . . . . . . . . . . . . . . . . . . . . . 2 . Damage Inflicted 32460 | 70 167 228 . 78 1923 189 897 774 785 102 . 2947 2169 55 . 385 2508 1035 3339 574 987 1243 4645 154 637 966 1325 1 127 2573 1577 Guns 16212 | 70 160 210 . 78 1305 90 892 584 299 14 . 1115 1224 . . 350 354 456 880 507 167 1169 3524 154 621 655 750 . . . 584 Cannons 7048 | . . . . . 604 21 . 116 161 88 . 1832 352 . . . . 194 1020 67 . . 1106 . . 311 195 . . 981 . Explosions 3496 | . . . . . . 78 . . 325 . . . . . . . 1087 . 1032 . . . . . . . . . . 459 515 Melee 5410 | . . . . . . . . . . . . . 593 55 . 35 1067 385 379 . 820 . . . . . 380 . 127 1107 462 Ramming 294 | . 7 18 . . 14 . 5 74 . . . . . . . . . . 28 . . 74 15 . 16 . . 1 . 26 16 Kinetic 12668 | 70 160 210 . 78 1749 . 737 563 404 37 . 1519 1371 . . 25 . . 753 308 33 . 2364 20 218 365 326 . . 946 412 Thermal 10206 | . . . . . 160 99 155 137 56 65 . 1428 205 . . 325 354 650 1147 266 134 1169 2266 134 403 290 424 . . 167 172 Explosive 2444 | . . . . . . . . . 325 . . . . . . . 1087 . 1032 . . . . . . . . . . . . Electromagnetic 1438 | . . . . . . 90 . . . . . . . . . . . . . . . . . . . 311 195 . . 327 515 Impact 20 | . . . . . . . . . . . . . 20 . . . . . . . . . . . . . . . . . . Slashing 2048 | . . . . . . . . . . . . . 573 55 . 35 . . . . . . . . . . 219 . 127 1039 . Piercing 3342 | . . . . . . . . . . . . . . . . . 1067 385 379 . 820 . . . . . 161 . . 68 462 Highest Corruption 19 | . . . . . 5 . . 1 1 1 1 4 1 . . . . 11 11 19 19 19 3 3 3 3 9 . . 1 3 Average Corruption 4 | . . . . . 5 . . 1 1 1 1 2 1 . . . . 5 11 14 12 3 1 2 3 3 9 . . 1 2 Corruption Purged 25 | . . . . . . . . . . . . . 3 . . . . . . . 19 . 3 . . . . . . . . Corruption Blocked 32 | . . . . . . . . . . . . . . . . . . . 1 4 . . . . . . . . 7 20 . Effects 187 | . . . . . 20 . . 1 5 . 2 12 1 . . . . 14 50 24 16 6 11 5 10 1 . . . 1 8 Message Errors 45 | . . . . . 3 . . 1 2 . . 2 . . . . . 4 13 5 3 2 4 1 2 1 . . . 1 1 Matter Fused 49 | . . . . . 7 . . . 3 . 2 2 . . . . . 3 11 4 4 1 4 2 3 . . . . . 3 Heat Flow Errors 24 | . . . . . 3 . . . . . . 1 . . . . . 1 8 4 2 1 . 1 2 . . . . . 1 Energy Discharges 14 | . . . . . 2 . . . . . . 1 . . . . . . 7 1 2 1 . . . . . . . . . Parts Rejected 4 | . . . . . . . . . . . . 1 . . . . . . 2 . . . 1 . . . . . . . . Parts Fused 1 | . . . . . . . . . . . . . . . . . . . . 1 . . . . . . . . . . . Data Loss (minor) 17 | . . . . . 1 . . . . . . 2 . . . . . 3 3 4 2 . . 1 . . . . . . 1 Data Loss (major) 5 | . . . . . . . . . . . . 1 1 . . . . . 1 . 1 . 1 . . . . . . . . Misfires 5 | . . . . . 1 . . . . . . . . . . . . 1 . 1 1 . . . 1 . . . . . . Alerts 9 | . . . . . . . . . . . . . . . . . . 2 2 1 . 1 . . 1 . . . . . 2 Misdirections 2 | . . . . . . . . . . . . . . . . . . . 1 1 . . . . . . . . . . . Weapon Failures 12 | . . . . . 3 . . . . . . 2 . . . . . . 2 2 1 . 1 . 1 . . . . . . Overload Shots 5 | . . . . . . . . . . . . . . . . . . . . 2 . 2 1 . . . . . . . . Overflow Damage 987 | . . . . . . . . . . . . 31 52 . . . 236 55 26 . 386 . . . . . . . 87 83 31 Projectiles 31 | . . . . . . . . . . . . 31 . . . . . . . . . . . . . . . . . . . Explosions 58 | . . . . . . . . . . . . . . . . . 40 . 18 . . . . . . . . . . . . Melee 898 | . . . . . . . . . . . . . 52 . . . 196 55 8 . 386 . . . . . . . 87 83 31 Knockbacks 33 | . . . . . . . . . 2 1 . 4 14 . . . . . 5 . . . . . . . . . . 6 1 Impact 1 | . . . . . . . . . . . . . . . . . . . . . . . . . . . . . . . 1 Kinetic 31 | . . . . . . . . . 2 1 . 4 14 . . . . . 5 . . . . . . . . . . 5 . Secondary 1 | . . . . . . . . . . . . . . . . . . . . . . . . . . . . . . 1 . Self-Inflicted Damage 136 | . . . . . . 38 . . . . . . . . . . 22 . 49 . . . . . . . . . . . 27 Shots 9 | . . . . . . 1 . . . . . . . . . . 2 . 2 . . . . . . . . . . . 4 Rammed 18 | . . . . . 5 . . . . . . . . . . . . . . . . 10 1 . . . . . . . 2 Targets Rammed 38 | . 1 4 . . 5 . 1 3 . . . . . . . . . . 3 . . 12 4 . 1 . . 1 . 1 2 Kicked 18 | . 1 4 . . . . 1 3 . . . . . . . . . . 3 . . . 3 . 1 . . 1 . 1 . Crushed 2 | . . . . . . . . . . . . . . . . . . . . . . 2 . . . . . . . . . Highest Temperature 510 | . 6 18 . 4 510 28 78 380 114 . . 205 . . . 32 169 264 416 230 244 276 214 188 270 261 10 . . 294 203 Average Temperature 89 | . 6 7 . 3 133 17 37 98 37 . . 62 . . . 24 64 103 90 60 112 56 34 120 115 81 6 . . 115 73 Received Heat Transfer 4717 | . 48 54 . . 684 . 174 132 207 . . 654 309 . . . 159 165 738 81 9 210 448 . . 39 143 72 . 135 256 Effects 19 | . . . . . 13 . . . . . . . . . . . . . . 1 . 1 . . 1 3 . . . . . Shutdowns 1 | . . . . . 1 . . . . . . . . . . . . . . . . . . . . . . . . . . Energy Bleed 3 | . . . . . 1 . . . . . . . . . . . . . . 1 . . . . 1 . . . . . . Interference 8 | . . . . . 4 . . . . . . . . . . . . . . . . 1 . . . 3 . . . . . Matter Decay 1 | . . . . . 1 . . . . . . . . . . . . . . . . . . . . . . . . . . Short Circuit 2 | . . . . . 2 . . . . . . . . . . . . . . . . . . . . . . . . . . Damage (minor) 1 | . . . . . 1 . . . . . . . . . . . . . . . . . . . . . . . . . . Damage (major) 1 | . . . . . 1 . . . . . . . . . . . . . . . . . . . . . . . . . . Damage (core) 2 | . . . . . 2 . . . . . . . . . . . . . . . . . . . . . . . . . . Siege Activations . | . . . . . . . . . . . . . . . . . . . . . . . . . . . . . . . . Robots Corrupted . | . . . . . . . . . . . . . . . . . . . . . . . . . . . . . . . . Combat Hostiles . | . . . . . . . . . . . . . . . . . . . . . . . . . . . . . . . . Parts Fried 5 | . . . . . . . . . . . . . 2 . . . . . . . . . . . . . 3 . . . . Impact Corruptions 2 | . . . . . . . . 1 . . . . 1 . . . . . . . . . . . . . . . . . . Robots Melted 5 | . . . . . . . . . . 1 . 2 . . . . . . . . . . 1 . 1 . . . . . . Combat Hostiles 5 | . . . . . . . . . . 1 . 2 . . . . . . . . . . 1 . 1 . . . . . . Parts Melted 34 | . . . . . . . . . . . . 4 2 . . 2 3 1 7 1 . 2 4 . 4 . 1 . . 3 . Heat Transferred 16492 | . . . . . 444 137 296 333 111 100 . 2251 450 . . 822 970 992 2323 481 185 1407 2774 222 666 463 666 . . 250 149 Parts Sabotaged . | . . . . . . . . . . . . . . . . . . . . . . . . . . . . . . . . Parts Stolen . | . . . . . . . . . . . . . . . . . . . . . . . . . . . . . . . . Parts Stripped . | . . . . . . . . . . . . . . . . . . . . . . . . . . . . . . . . Power Chain Reactions 3 | . . . . . . 2 . . . . . . . . . . . . . . . . . . . . . . . 1 . Missiles Intercepted . | . . . . . . . . . . . . . . . . . . . . . . . . . . . . . . . . Alert | -11 -10 -10 -10 -9 -8 -7 -7 -7 -7 -7 -7 -6 -6 -6 -6 -6 -6 -5 -5 -5 -5 -5 -4 -4 -4 -4 -3 -3 -2 -1 -1 ------- Run | Jun Mat Min Exi Min Mat Fac Gar Fac Low Low Dat Pro Fac Gar Fac DSF Gar Fac Ext Cet Arc Hub Fac Upp Upp War Pro Res Res Acc Gar Peak Influence 1499 | 10 86 70 . 60 416 176 1499 1148 . . . . 190 296 164 403 1068 630 514 1152 702 610 957 . . . . 348 111 450 540 Initial 786 | . 6 33 . . 23 138 123 786 . . . . 40 92 155 107 302 560 203 207 411 175 254 . . . . 327 106 19 206 Average 388 | 3 58 51 . 55 249 146 857 989 . . . . 67 241 159 251 849 487 329 814 610 342 262 . . . . 288 75 262 315 Maximum Alert Level 4 | . . . . . 2 . 4 4 . . . . . 1 . 2 3 2 2 4 3 2 3 . . . . 1 . 2 2 Low Security (%) 34 | 100 100 100 . 100 19 100 13 . . . . . 100 12 100 24 . . 5 . . 13 47 . . . . 22 100 27 . Level 1 28 | . . . . . 74 . 3 . . . . . . 87 . 58 13 14 80 8 . 53 24 . . . . 77 . 54 81 Level 2 19 | . . . . . 5 . 12 . . . . . . . . 16 10 85 13 35 74 33 24 . . . . . . 18 17 Level 3 14 | . . . . . . . 43 89 . . . . . . . . 76 . . 35 25 . 3 . . . . . . . . Level 4 3 | . . . . . . . 27 10 . . . . . . . . . . . 20 . . . . . . . . . . . Level 5 . | . . . . . . . . . . . . . . . . . . . . . . . . . . . . . . . . High Security . | . . . . . . . . . . . . . . . . . . . . . . . . . . . . . . . . Max Security . | . . . . . . . . . . . . . . . . . . . . . . . . . . . . . . . . Sterilizations 1 | . . . . . . . . . . . . . . . . 1 . . . . . . . . . . . . . . . Squads Dispatched 61 | . 1 . . . 7 . . 6 . . . 1 12 . . 1 . 3 2 . . 7 14 . . . . 2 . 5 . Investigation 10 | . 1 . . . 1 . . 2 . . . . 1 . . . . 1 2 . . 1 1 . . . . . . . . Extermination 10 | . . . . . . . . . . . . . 3 . . . . 1 . . . 1 4 . . . . . . 1 . Reinforcement 28 | . . . . . 6 . . 3 . . . . 5 . . 1 . 1 . . . 3 5 . . . . 1 . 3 . Assault 7 | . . . . . . . . 1 . . . 1 . . . . . . . . . 2 1 . . . . 1 . 1 . Garrison 6 | . . . . . . . . . . . . . 3 . . . . . . . . . 3 . . . . . . . . Intercept . | . . . . . . . . . . . . . . . . . . . . . . . . . . . . . . . . Searches Triggered . | . . . . . . . . . . . . . . . . . . . . . . . . . . . . . . . . Data Miner Redirects 4 | . . . . . . . . . . . . . 1 . . . . 1 . . . 2 . . . . . . . . . Construction Impeded 6 | . . . . . 1 . . 1 . . . . 1 . . . . . . . . . 3 . . . . . . . . Haulers Reinforced 3 | . . . . . . . . . . . . . . . . . . . . . . . 2 . . . . . . 1 . Active Scanning Responses . | . . . . . . . . . . . . . . . . . . . . . . . . . . . . . . . . Cargo Convoy Interrupts . | . . . . . . . . . . . . . . . . . . . . . . . . . . . . . . . . Stealth | -11 -10 -10 -10 -9 -8 -7 -7 -7 -7 -7 -7 -6 -6 -6 -6 -6 -6 -5 -5 -5 -5 -5 -4 -4 -4 -4 -3 -3 -2 -1 -1 --------- Run | Jun Mat Min Exi Min Mat Fac Gar Fac Low Low Dat Pro Fac Gar Fac DSF Gar Fac Ext Cet Arc Hub Fac Upp Upp War Pro Res Res Acc Gar Distress Signals 25 | . 1 . . . . . . . . . . . 5 . . . . . 1 2 . 2 8 . . . 2 . 2 2 . Communications Jammed 5 | . . . . . . . . . . . . . 5 . . . . . . . . . . . . . . . . . . Distress Signals . | . . . . . . . . . . . . . . . . . . . . . . . . . . . . . . . . Times Spotted 501 | . 2 5 . 4 34 . 32 18 7 4 . 18 36 . . 7 23 17 32 24 6 26 60 2 7 30 13 15 4 32 43 Peak Tracking Total 22 | . 5 3 . 4 9 . 5 7 4 4 . 7 5 . . 4 8 5 6 9 2 12 11 2 5 10 8 10 3 11 22 Tactical Retreats 30 | . . . . . 1 . 2 4 . . . . 4 . . . 1 3 2 . . 4 3 . . . . 1 1 2 2 Traps | -11 -10 -10 -10 -9 -8 -7 -7 -7 -7 -7 -7 -6 -6 -6 -6 -6 -6 -5 -5 -5 -5 -5 -4 -4 -4 -4 -3 -3 -2 -1 -1 ------- Run | Jun Mat Min Exi Min Mat Fac Gar Fac Low Low Dat Pro Fac Gar Fac DSF Gar Fac Ext Cet Arc Hub Fac Upp Upp War Pro Res Res Acc Gar Traps Triggered 24 | . . . . . . . 4 1 . . . . 1 1 . 2 7 3 1 . . 1 2 . . . . 1 . . . Indirectly . | . . . . . . . . . . . . . . . . . . . . . . . . . . . . . . . . Trap Hack Attempts . | . . . . . . . . . . . . . . . . . . . . . . . . . . . . . . . . Triggered . | . . . . . . . . . . . . . . . . . . . . . . . . . . . . . . . . Disarmed . | . . . . . . . . . . . . . . . . . . . . . . . . . . . . . . . . Reprogrammed . | . . . . . . . . . . . . . . . . . . . . . . . . . . . . . . . . Reused . | . . . . . . . . . . . . . . . . . . . . . . . . . . . . . . . . Traps Extracted . | . . . . . . . . . . . . . . . . . . . . . . . . . . . . . . . . Installed . | . . . . . . . . . . . . . . . . . . . . . . . . . . . . . . . . Triggered 7 | . . . . . . . . . . . . . . . . . . . . . . . 1 . . 6 . . . . . Machines | -11 -10 -10 -10 -9 -8 -7 -7 -7 -7 -7 -7 -6 -6 -6 -6 -6 -6 -5 -5 -5 -5 -5 -4 -4 -4 -4 -3 -3 -2 -1 -1 ---------- Run | Jun Mat Min Exi Min Mat Fac Gar Fac Low Low Dat Pro Fac Gar Fac DSF Gar Fac Ext Cet Arc Hub Fac Upp Upp War Pro Res Res Acc Gar Machines Disabled 37 | . . . . . 3 . 6 2 . . . 2 1 2 . . 2 1 . 4 1 1 9 . . . . . . 2 1 Max in Single Turn 2 | . . . . . 1 . 2 . . . . 1 1 1 . . 1 1 . 1 . 1 1 . . . . . . 1 1 Garrison Access 7 | . . . . . . . . . . . . . . . . . . 2 . . . 2 . . . . . 1 1 1 . Garrison Relay 6 | . . . . . . . 4 . . . . . . 1 . . 1 . . . . . . . . . . . . . . Phase Generator 1 | . . . . . . . 1 . . . . . . . . . . . . . . . . . . . . . . . . Network Hub 2 | . . . . . . . . . . . . . . . . . . . . . . 2 . . . . . . . . . Energy Cycler 1 | . . . . . . . . . . . . . . . . . . . . . . . . . . . . . . 1 . Machines Repaired 1 | . . . . . . . . . . . . . . . . . . . . . . 1 . . . . . . . . . Machines Sabotaged . | . . . . . . . . . . . . . . . . . . . . . . . . . . . . . . . . Overloaded Fab Kills . | . . . . . . . . . . . . . . . . . . . . . . . . . . . . . . . . Hacking | -11 -10 -10 -10 -9 -8 -7 -7 -7 -7 -7 -7 -6 -6 -6 -6 -6 -6 -5 -5 -5 -5 -5 -4 -4 -4 -4 -3 -3 -2 -1 -1 --------- Run | Jun Mat Min Exi Min Mat Fac Gar Fac Low Low Dat Pro Fac Gar Fac DSF Gar Fac Ext Cet Arc Hub Fac Upp Upp War Pro Res Res Acc Gar Machines Accessed 75 | . 1 . 2 . 4 2 4 2 . 2 4 . 8 1 2 . 2 8 6 . . 7 9 . . . . 6 1 4 . Terminals 45 | . . . . . 3 . 4 2 . . . . 4 1 1 . 2 4 6 . . 6 5 . . . . 5 . 2 . Fabricators 4 | . . . . . . . . . . . . . 1 . 1 . . . . . . . 2 . . . . . . . . Repair Stations 3 | . . . . . . 1 . . . . . . . . . . . 1 . . . . . . . . . 1 . . . Recycling Units 4 | . 1 . . . 1 . . . . . . . 1 . . . . . . . . . 1 . . . . . . . . Scanalyzers 2 | . . . . . . . . . . . . . . . . . . 1 . . . . 1 . . . . . . . . Garrison Access 9 | . . . . . . 1 . . . . . . 2 . . . . 2 . . . 1 . . . . . . 1 2 . Total Hacks 213 | . 1 . 2 . 9 2 6 5 . 2 29 . 11 1 7 . 3 16 18 . . 15 55 . . . . 15 1 15 . Successful 128 | . 1 . 2 . 2 2 3 . . 2 29 . 4 1 6 . 1 9 6 . . 7 44 . . . . 4 1 4 . Failed 85 | . . . . . 7 . 3 5 . . . . 7 . 1 . 2 7 12 . . 8 11 . . . . 11 . 11 . Catastrophic 23 | . . . . . . . 1 3 . . . . 3 . . . 1 2 1 . . 1 4 . . . . 4 . 3 . Database Lockouts . | . . . . . . . . . . . . . . . . . . . . . . . . . . . . . . . . Manual 61 | . 1 . 1 . 9 1 . 3 . . . . 2 . 3 . . . 7 1 . 2 21 . . 1 . 3 . 6 . Terminals 112 | . . . . . 8 . 6 5 . . . . 4 1 2 . 3 7 18 . . 14 22 . . . . 10 . 12 . Fabricators 36 | . . . . . . . . . . . . . 2 . 5 . . . . . . . 29 . . . . . . . . Repair Stations 8 | . . . . . . 1 . . . . . . . . . . . 2 . . . . . . . . . 5 . . . Recycling Units 5 | . 1 . . . 1 . . . . . . . 1 . . . . . . . . . 2 . . . . . . . . Scanalyzers 6 | . . . . . . . . . . . . . . . . . . 4 . . . . 2 . . . . . . . . Garrison Access 13 | . . . . . . 1 . . . . . . 4 . . . . 3 . . . 1 . . . . . . 1 3 . Terminal Hacks 68 | . . . 2 . . . 3 . . 2 29 . 2 1 1 . 1 2 3 . . 5 12 . . . . 3 . 2 . Record 12 | . . . 1 . . . . . . 1 10 . . . . . . . . . . . . . . . . . . . . Part Schematic 12 | . . . . . . . . . . . 10 . . . . . . . 2 . . . . . . . . . . . . Robot Schematic 9 | . . . . . . . . . . . 6 . . . . . . . . . . . 3 . . . . . . . . Prototype ID Bank 5 | . . . . . . . . . . . 3 . . . . . . . . . . 1 1 . . . . . . . . Open Door 3 | . . . . . . . 1 . . 1 . . . . . . . 1 . . . . . . . . . . . . . Open DSF 2 | . . . . . . . . . . . . . . . 1 . . . . . . . . . . . . 1 . . . Level Access Points 2 | . . . . . . . . . . . . . . . . . . . . . . . . . . . . 1 . 1 . Branch Access Points 3 | . . . . . . . . . . . . . 1 . . . . . . . . . 1 . . . . 1 . . . Emergency Access Points 6 | . . . . . . . 1 . . . . . . 1 . . 1 . . . . 2 1 . . . . . . . . Terminal Index 2 | . . . . . . . . . . . . . . . . . . . 1 . . . . . . . . . . 1 . Fabricator Index 1 | . . . . . . . . . . . . . . . . . . . . . . . 1 . . . . . . . . Garrison Index 1 | . . . . . . . . . . . . . 1 . . . . . . . . . . . . . . . . . . Alert Level 1 | . . . . . . . . . . . . . . . . . . . . . . . 1 . . . . . . . . Unreport Threat 3 | . . . . . . . . . . . . . . . . . . . . . . 1 2 . . . . . . . . Maintenance Status 1 | . . . . . . . . . . . . . . . . . . . . . . . 1 . . . . . . . . Registered Components 1 | . . . . . . . . . . . . . . . . . . 1 . . . . . . . . . . . . . Zone Layout 2 | . . . . . . . . . . . . . . . . . . . . . . 1 1 . . . . . . . . Patrol Navigation 1 | . . . . . . . 1 . . . . . . . . . . . . . . . . . . . . . . . . EX-Prototype ID Bank 1 | . . . 1 . . . . . . . . . . . . . . . . . . . . . . . . . . . . Fabricator Hacks 26 | . . . . . . . . . . . . . 1 . 2 . . . . . . . 23 . . . . . . . . Network Status 3 | . . . . . . . . . . . . . 1 . 1 . . . . . . . 1 . . . . . . . . Load Schematic 11 | . . . . . . . . . . . . . . . . . . . . . . . 11 . . . . . . . . Build 12 | . . . . . . . . . . . . . . . 1 . . . . . . . 11 . . . . . . . . Repair Station Hacks 3 | . . . . . . . . . . . . . . . . . . 2 . . . . . . . . . 1 . . . Scan Component 2 | . . . . . . . . . . . . . . . . . . 1 . . . . . . . . . 1 . . . Repair 1 | . . . . . . . . . . . . . . . . . . 1 . . . . . . . . . . . . . Recycling Unit Hacks . | . . . . . . . . . . . . . . . . . . . . . . . . . . . . . . . . Scanalyzer 5 | . . . . . . . . . . . . . . . . . . 3 . . . . 2 . . . . . . . . Insert Component 2 | . . . . . . . . . . . . . . . . . . 1 . . . . 1 . . . . . . . . Analyze 3 | . . . . . . . . . . . . . . . . . . 2 . . . . 1 . . . . . . . . Garrison Access Hacks 7 | . . . . . . 1 . . . . . . 1 . . . . 2 . . . 1 . . . . . . 1 1 . Unlock Access 4 | . . . . . . 1 . . . . . . 1 . . . . . . . . 1 . . . . . . . 1 . Seal Access 3 | . . . . . . . . . . . . . . . . . . 2 . . . . . . . . . . 1 . . Unauthorized Hacks 19 | . 1 . . . 2 1 . . . . . . . . 3 . . . 3 . . 1 7 . . . . . . 1 . Terminals 7 | . . . . . 1 . . . . . . . . . . . . . 3 . . 1 1 . . . . . . 1 . Assimilate 1 | . . . . . . . . . . . . . . . . . . . 1 . . . . . . . . . . . . Botnet 5 | . . . . . 1 . . . . . . . . . . . . . 2 . . . 1 . . . . . . 1 . Sabotage 1 | . . . . . . . . . . . . . . . . . . . . . . 1 . . . . . . . . . Fabricators 7 | . . . . . . . . . . . . . . . 3 . . . . . . . 4 . . . . . . . . Report 2 | . . . . . . . . . . . . . . . 1 . . . . . . . 1 . . . . . . . . Prioritize 1 | . . . . . . . . . . . . . . . . . . . . . . . 1 . . . . . . . . Liberate 2 | . . . . . . . . . . . . . . . 1 . . . . . . . 1 . . . . . . . . Haulers 2 | . . . . . . . . . . . . . . . 1 . . . . . . . 1 . . . . . . . . Repair Stations 1 | . . . . . . 1 . . . . . . . . . . . . . . . . . . . . . . . . . Mechanics 1 | . . . . . . 1 . . . . . . . . . . . . . . . . . . . . . . . . . Recycling Units 4 | . 1 . . . 1 . . . . . . . . . . . . . . . . . 2 . . . . . . . . Monitor 1 | . . . . . . . . . . . . . . . . . . . . . . . 1 . . . . . . . . Recyclers 1 | . . . . . . . . . . . . . . . . . . . . . . . 1 . . . . . . . . Tunnel 2 | . 1 . . . 1 . . . . . . . . . . . . . . . . . . . . . . . . . . Scanalyzers . | . . . . . . . . . . . . . . . . . . . . . . . . . . . . . . . . Garrison Access . | . . . . . . . . . . . . . . . . . . . . . . . . . . . . . . . . Data Cores Recovered 1 | . . . . . . . . . . . . . . . . . . . . . . 1 . . . . . . . . . Used 1 | . . . . . . . . . . . . . . . . . . . . . . 1 . . . . . . . . . Hacking Detections 39 | . . . . . 2 . 1 2 . . . . 6 . 1 . 2 3 6 . . 4 3 . . . . 5 . 4 . Full Trace Events 6 | . . . . . . . 1 2 . . . . 1 . . . . 1 1 . . . . . . . . . . . . Feedback Events . | . . . . . . . . . . . . . . . . . . . . . . . . . . . . . . . . Feedback Blocked . | . . . . . . . . . . . . . . . . . . . . . . . . . . . . . . . . Robot Schematics Acquired 9 | . . . . . . . . . . . 6 . . . . . . . . . . . 3 . . . . . . . . Robots Built 19 | . . . . . . . . . . . . . . . 1 . . . . . . . 18 . . . . . . . . Authchips 9 | . . . . . . . . . . . . . . . . . . . . . . . 9 . . . . . . . . Time 591 | . . . . . . . . . . . . . . . 81 . . . . . . . 510 . . . . . . . . Total Robot Build Rating 111 | . . . . . . . . . . . . . . . 1 . . . . . . . 110 . . . . . . . . Part Schematics Acquired 14 | . . . . . . . . . . . 10 . . . . . . 1 2 . . . 1 . . . . . . . . Parts Built 2 | . . . . . . . . . . . . . . . . . . . . . . . 2 . . . . . . . . Authchips 2 | . . . . . . . . . . . . . . . . . . . . . . . 2 . . . . . . . . Time 102 | . . . . . . . . . . . . . . . . . . . . . . . 102 . . . . . . . . Total Part Build Rating 15 | . . . . . . . . . . . . . . . . . . . . . . . 15 . . . . . . . . Parts Repaired 1 | . . . . . . . . . . . . . . . . . . 1 . . . . . . . . . . . . . Time 103 | . . . . . . . . . . . . . . . . . . 103 . . . . . . . . . . . . . Parts Recycled . | . . . . . . . . . . . . . . . . . . . . . . . . . . . . . . . . Recycled Matter . | . . . . . . . . . . . . . . . . . . . . . . . . . . . . . . . . Retrieved Matter . | . . . . . . . . . . . . . . . . . . . . . . . . . . . . . . . . Retrieved Components . | . . . . . . . . . . . . . . . . . . . . . . . . . . . . . . . . Parts Scanalyzed 2 | . . . . . . . . . . . . . . . . . . 1 . . . . 1 . . . . . . . . Part Schematics Acquired 2 | . . . . . . . . . . . . . . . . . . 1 . . . . 1 . . . . . . . . Parts Damaged 1 | . . . . . . . . . . . . . . . . . . 1 . . . . . . . . . . . . . Bothacking | -11 -10 -10 -10 -9 -8 -7 -7 -7 -7 -7 -7 -6 -6 -6 -6 -6 -6 -5 -5 -5 -5 -5 -4 -4 -4 -4 -3 -3 -2 -1 -1 ------------ Run | Jun Mat Min Exi Min Mat Fac Gar Fac Low Low Dat Pro Fac Gar Fac DSF Gar Fac Ext Cet Arc Hub Fac Upp Upp War Pro Res Res Acc Gar Used RIF Installer . | . . . . . . . . . . . . . . . . . . . . . . . . . . . . . . . . Robots Hacked . | . . . . . . . . . . . . . . . . . . . . . . . . . . . . . . . . Non-combat . | . . . . . . . . . . . . . . . . . . . . . . . . . . . . . . . . Combat . | . . . . . . . . . . . . . . . . . . . . . . . . . . . . . . . . Robot Hacks Applied . | . . . . . . . . . . . . . . . . . . . . . . . . . . . . . . . . Relay Couplers Released 28 | . . . . . . . 13 . . . . . . 3 . . 3 . . . . 2 . . . . . 4 . 3 . Machine Destruction 28 | . . . . . . . 13 . . . . . . 3 . . 3 . . . . 2 . . . . . 4 . 3 . Fabnet Peak Effective % . | . . . . . . . . . . . . . . . . . . . . . . . . . . . . . . . . Robots Rewired 31 | . . . . . . . 9 . . . . 1 . 2 . . . . 12 . . . . . . . . . 1 . 6 Allies Hacked 6 | . . . . . . . . . . . . . . . . . . . 1 . . . 5 . . . . . . . . Hacks Repelled . | . . . . . . . . . . . . . . . . . . . . . . . . . . . . . . . . Allies | -11 -10 -10 -10 -9 -8 -7 -7 -7 -7 -7 -7 -6 -6 -6 -6 -6 -6 -5 -5 -5 -5 -5 -4 -4 -4 -4 -3 -3 -2 -1 -1 -------- Run | Jun Mat Min Exi Min Mat Fac Gar Fac Low Low Dat Pro Fac Gar Fac DSF Gar Fac Ext Cet Arc Hub Fac Upp Upp War Pro Res Res Acc Gar Total Allies 91 | . . 1 . 2 . . 11 . . 3 . 2 . 4 1 . . . 29 5 . . 26 . . . . . 1 . 6 Largest Group 13 | . . 1 . 2 2 . 8 8 . 3 . 1 . 4 5 5 4 . 12 12 11 10 13 9 2 . . . 1 1 4 Highest-Rated Group 759 | . . 31 . 43 43 . 245 245 . 60 . 96 . 322 332 332 223 . 457 759 759 606 696 419 104 . . . 69 69 276 Highest-Rated Ally 159 | . . 31 . 31 31 . 95 39 . 20 . 96 . 99 99 99 89 . 159 159 153 96 56 56 56 . . . 69 69 69 Warlord Squad Rendezvous 4 | . . . . . . . . . . . . . 2 . . . . 2 . . . . . . . . . . . . . Dakka 1 | . . . . . . . . . . . . . . . . . . 1 . . . . . . . . . . . . . Infantry 1 | . . . . . . . . . . . . . 1 . . . . . . . . . . . . . . . . . . Ranger 1 | . . . . . . . . . . . . . . . . . . 1 . . . . . . . . . . . . . Pyro 1 | . . . . . . . . . . . . . 1 . . . . . . . . . . . . . . . . . . Total Orders . | . . . . . . . . . . . . . . . . . . . . . . . . . . . . . . . . Ally Attacks 687 | . . 8 . . 18 . 70 45 . . . 11 . 7 . 44 29 . 74 131 22 36 115 12 9 . . . 3 . 53 Total Damage 20743 | . . 83 . . 251 . 2292 1024 . . . 458 . 319 . 1142 886 . 1509 3504 799 1484 4356 361 117 . . . 54 . 2104 Kills 142 | . . 1 . . 3 . 28 11 . . . . . 1 . 7 10 . 6 26 4 9 27 2 2 . . . . . 5 Allies Corrupted 1 | . . . . . . . . . . . . . . . . . . . . . . . 1 . . . . . . . . Allies Melted . | . . . . . . . . . . . . . . . . . . . . . . . . . . . . . . . . Intel | -11 -10 -10 -10 -9 -8 -7 -7 -7 -7 -7 -7 -6 -6 -6 -6 -6 -6 -5 -5 -5 -5 -5 -4 -4 -4 -4 -3 -3 -2 -1 -1 ------- Run | Jun Mat Min Exi Min Mat Fac Gar Fac Low Low Dat Pro Fac Gar Fac DSF Gar Fac Ext Cet Arc Hub Fac Upp Upp War Pro Res Res Acc Gar Robot Analysis Total . | . . . . . . . . . . . . . . . . . . . . . . . . . . . . . . . . Derelict Logs Recovered 9 | . . 1 . 1 . . . . 2 . . 2 . . . . . . . . . . . 2 1 . . . . . . Drone Launches . | . . . . . . . . . . . . . . . . . . . . . . . . . . . . . . . . Drone Recoveries . | . . . . . . . . . . . . . . . . . . . . . . . . . . . . . . . . Decoded 0b10 Intel 31 | . . . . . . . . . . . . . . . . . . . . . . . . . . . . . 7 15 9 Garrisons 3 | . . . . . . . . . . . . . . . . . . . . . . . . . . . . . 1 2 . Patrols 17 | . . . . . . . . . . . . . . . . . . . . . . . . . . . . . 1 9 7 Reinforcements 1 | . . . . . . . . . . . . . . . . . . . . . . . . . . . . . . 1 . Guards 10 | . . . . . . . . . . . . . . . . . . . . . . . . . . . . . 5 3 2 Exploration | -11 -10 -10 -10 -9 -8 -7 -7 -7 -7 -7 -7 -6 -6 -6 -6 -6 -6 -5 -5 -5 -5 -5 -4 -4 -4 -4 -3 -3 -2 -1 -1 ------------- Run | Jun Mat Min Exi Min Mat Fac Gar Fac Low Low Dat Pro Fac Gar Fac DSF Gar Fac Ext Cet Arc Hub Fac Upp Upp War Pro Res Res Acc Gar Turns Passed 20692 | 94 109 562 440 193 900 191 1346 619 582 270 143 707 1767 240 170 285 955 1272 1148 548 537 689 1966 386 395 1069 535 550 612 828 584 Spaces Moved 12996 | 54 54 414 365 131 432 294 851 447 380 204 110 379 1120 157 135 178 611 829 594 298 260 357 859 301 277 745 360 433 429 579 359 Core 394 | 2 . . . . 66 290 . . . . . . . . . . . . . . . . . . . . . . . . 36 Treads 1341 | . . . . . 261 . . . . . . . 97 . . . . . . 150 260 357 216 . . . . . . . . Legs 10228 | 52 54 414 365 131 105 4 851 447 380 204 110 379 281 . 1 178 611 829 594 148 . . 643 301 277 745 360 433 429 579 323 Wheels 1033 | . . . . . . . . . . . . . 742 157 134 . . . . . . . . . . . . . . . . Hover . | . . . . . . . . . . . . . . . . . . . . . . . . . . . . . . . . Flight . | . . . . . . . . . . . . . . . . . . . . . . . . . . . . . . . . Fastest Speed 50 | 50 120 120 120 120 50 50 117 117 117 125 125 116 100 115 115 122 122 114 114 120 160 160 120 120 120 120 118 115 111 111 50 Average Speed 122 | 117 120 120 120 120 137 52 123 117 129 125 125 120 120 115 115 122 122 124 126 144 160 160 131 120 120 120 119 116 113 111 106 Slowest Speed 330 | 120 120 120 120 120 260 150 130 117 189 125 125 130 225 115 122 123 122 190 190 240 160 160 330 120 120 120 120 118 114 112 250 Overloaded Moves . | . . . . . . . . . . . . . . . . . . . . . . . . . . . . . . . . Propulsion Burnouts . | . . . . . . . . . . . . . . . . . . . . . . . . . . . . . . . . Robots Hopped . | . . . . . . . . . . . . . . . . . . . . . . . . . . . . . . . . Cave-ins Triggered 1 | . . . . . 1 . . . . . . . . . . . . . . . . . . . . . . . . . . Exploration Rate (%) 45 | 4 13 74 74 36 46 8 85 15 54 27 73 60 24 40 6 93 74 24 71 73 87 38 22 43 49 85 58 12 13 19 46 Regions Visited 31 Branch Regions 15 Pre-discovered Areas 9 | . 1 1 1 . 1 . . . 1 . 1 . . . . . . . . . . . . 2 1 . . . . . . Known Exits Taken 8 | . . . . . 1 1 . . . . . 1 1 . 1 . . . . . . . 1 . . . . 1 . 1 . Unknown Exits Taken 19 | 1 1 1 1 1 . . . 1 1 1 1 . . . . . . 1 1 1 1 1 . 1 1 1 1 . 1 . . Scrap Searched 15 | . . 1 . 4 . . . . 4 . . 1 . . . . . . . . . . . 2 2 . 1 . . . . Spaces Dug 100 | . . . . . . . . 1 . 2 . . 28 . . . 28 3 . . . 2 18 . . . . 5 1 12 . Terrain Destroyed 433 | . . . . . 7 5 79 3 46 3 . 40 34 . . . 28 5 72 2 1 12 48 1 6 . 7 5 1 28 . Melee 21 | . . . . . . . . . . . . . 6 . . . . 3 . . . . 1 . . . . 5 1 5 . Projectile 185 | . . . . . 7 . 4 3 7 3 . 40 6 . . . . 2 17 2 1 12 47 1 6 . 7 . . 20 . AOE 227 | . . . . . . 5 75 . 39 . . . 22 . . . 28 . 55 . . . . . . . . . . 3 . Terrain Rammed . | . . . . . . . . . . . . . . . . . . . . . . . . . . . . . . . . Walls Destroyed . | . . . . . . . . . . . . . . . . . . . . . . . . . . . . . . . . Machines Disabled . | . . . . . . . . . . . . . . . . . . . . . . . . . . . . . . . . Actions | -11 -10 -10 -10 -9 -8 -7 -7 -7 -7 -7 -7 -6 -6 -6 -6 -6 -6 -5 -5 -5 -5 -5 -4 -4 -4 -4 -3 -3 -2 -1 -1 --------- Run | Jun Mat Min Exi Min Mat Fac Gar Fac Low Low Dat Pro Fac Gar Fac DSF Gar Fac Ext Cet Arc Hub Fac Upp Upp War Pro Res Res Acc Gar Total 16318 | 72 80 457 367 153 629 321 1091 501 440 212 115 504 1397 210 151 223 736 1006 867 380 358 416 1475 321 302 880 406 474 554 697 523 Wait 1305 | . 9 21 . 3 56 3 104 24 28 4 . 42 110 1 1 9 14 87 62 16 58 16 408 7 3 59 2 13 89 35 21 Move 12964 | 53 53 413 364 130 431 293 848 446 379 203 109 378 1120 156 134 177 608 828 593 297 259 356 858 300 276 744 359 433 428 579 359 Hop . | . . . . . . . . . . . . . . . . . . . . . . . . . . . . . . . . Pick Up 167 | 6 4 . 1 1 16 3 13 1 2 . . 2 13 1 2 5 13 2 4 5 3 . 18 3 2 12 3 8 5 3 16 Fast Attach 188 | 6 . 1 . 2 11 5 5 1 4 . 3 7 28 1 3 1 1 14 22 12 8 5 22 1 . 5 1 5 4 2 8 Attach 97 | 1 . . . . 3 3 1 . 2 . . 3 7 1 3 1 1 2 2 2 1 . 28 . 2 4 8 1 5 10 6 Detach 26 | . . . . . . . . 1 1 . . . 1 . . . . 2 . 2 . 1 7 . . 4 3 . 1 2 1 Swap 164 | 1 1 3 1 2 12 . 7 1 3 1 . 2 19 . 2 5 7 7 21 6 4 2 4 2 2 11 1 1 8 12 16 Drop 252 | . 2 3 1 3 35 4 12 3 5 . 3 . 24 1 6 6 5 13 26 17 11 2 13 5 . 17 . 7 8 3 17 Fire 658 | 5 10 12 . 12 60 10 36 21 16 4 . 53 51 . . 13 17 20 52 16 4 22 112 3 16 24 21 . . 30 18 Melee 151 | . . . . . . . . . . . . . 24 4 . 1 35 16 10 7 10 . 1 . . . 8 5 2 20 8 Ram 3 | . . . . . 1 . . . . . . . . . . . . . . . . . . . . . . . . . 2 Kick 17 | . 1 4 . . . . 1 3 . . . . . . . . . . 3 . . . 3 . 1 . . . . 1 . Crush 17 | . . . . . 4 . . . . . . . . . . . . . . . . 12 1 . . . . . . . . Escape Stasis 73 | . . . . . . . 17 . . . . . . . . 5 35 15 . . . . . . . . . 1 . . . Rewire 236 | . . . . . . . 47 . . . . 17 . 45 . . . . 72 . . . . . . . . . 4 . 51 Trap . | . . . . . . . . . . . . . . . . . . . . . . . . . . . . . . . . Miscellaneous . | . . . . . . . . . . . . . . . . . . . . . . . . . . . . . . . . Route ------- -11/Junkyard -10/Materials -10/Mines (discovered 2 exits: [*Mat] / *Exi) -10/Exiles (discovered 2 exits: [*Min x2]) -9/Mines (discovered 2 exits: *Mat x2) -8/Materials (discovered 2 exits: *Fac x2) -7/Factory -7/Garrison (discovered 3 exits: *Fac x3) -7/Factory -7/Lower Caves -7/Lower Caves -7/Data Miner -6/Proximity Caves -6/Factory (discovered 4 exits: *Fac / *Low x2 / Gar) -6/Garrison -6/Factory -6/DSF -6/Garrison (discovered 3 exits: *Fac x3) -5/Factory (discovered 5 exits: *Fac x2 / [*Upp] / *Ext x2) -5/Extension (discovered 2 exits: *Fac / *Cet) -5/Cetus (discovered 2 exits: *Fac / *Arc) -5/Archives (discovered 3 exits: *Fac / *Hub x2) -5/Hub_04(d) -4/Factory (discovered 3 exits: *Upp x2 / Arm) -4/Upper Caves -4/Upper Caves -4/Warlord -3/Proximity Caves -3/Research (discovered 5 exits: *Res x3 / Tes x2) -2/Research -1/Access (discovered 2 exits: Sur / Gar) -1/Garrison (discovered 1 exit: [*Acc]) History --------- Turn | Location | Event 5 | -11/Junkyard | Discovered new exit (range 16) 95 | -11/Junkyard | Entered Materials 185 | -10/Materials | Discovered new exit (range 5) 204 | -10/Materials | Entered Mines 207 | -10/Mines | Received a Mining Laser from a helpful Derelict 317 | -10/Mines | Build established: Mutant 447 | -10/Mines | Discovered new exit (range 13) 666 | -10/Mines | Deemed a non-threat by the Exiles lab entrance 666 | -10/Mines | Discovered new exit (range 5) 766 | -10/Mines | Entered Exiles 786 | -10/Exiles | Discovered new exit (range 15) 799 | -10/Exiles | Met 8R-AWN 817 | -10/Exiles | Met EX-HEX 864 | -10/Exiles | Met EX-DEC 871 | -10/Exiles | Learned location of Zion (-6) 1027 | -10/Exiles | Met EX-BIN 1044 | -10/Exiles | Aligned with FarCom system 1045 | -10/Exiles | Given EX-Vault access code 1074 | -10/Exiles | Opened EX-Vault 1082 | -10/Exiles | Found PSU Rigger 1106 | -10/Exiles | Warned to stay clear of 0b10 Research branches 1196 | -10/Exiles | Discovered new exit (range 10) 1206 | -10/Exiles | Left Exiles lab with PSU Rigger 1206 | -10/Exiles | Entered Mines 1332 | -9/Mines | Learned Materials emergency access door positions 1337 | -9/Mines | Found a hidden stash of uninstalled traps 1344 | -9/Mines | Discovered new exit (range 15) 1350 | -9/Mines | Discovered new exit (range 10) 1399 | -9/Mines | Entered Materials 1399 | -8/Materials | Accompanied by 2 allies 1399 | -8/Materials | Evolved 4 slots: Propulsion x1, Utility x2, Weapon x1 1404 | -8/Materials | Led the pair of lost Derelicts to an unsafe place 1796 | -8/Materials | Discovered new exit (range 15) 1833 | -8/Materials | Found Powered Armor 1838 | -8/Materials | Identified exit to Factory 1847 | -8/Materials | Found Powered Armor 1871 | -8/Materials | Found Powered Armor 1993 | -8/Materials | Discovered exit to Factory (range 10) 2181 | -8/Materials | Crushed by falling debris 2202 | -8/Materials | Core integrity fell below 50% 2206 | -8/Materials | Core integrity fell below 20% 2299 | -8/Materials | Entered Factory 2299 | -7/Factory | Evolved 2 slots: Propulsion x1, Utility x1 2482 | -7/Factory | Identified exit to Garrison 2490 | -7/Factory | Entered Garrison 2537 | -7/Garrison | Found embedded Infiltrators 2538 | -7/Garrison | Triggered checkpoint 2558 | -7/Garrison | Garrison Relay disabled 2746 | -7/Garrison | Triggered checkpoint 2819 | -7/Garrison | Phase Generator disabled 2852 | -7/Garrison | Discovered new exit (range 10) 2860 | -7/Garrison | Triggered checkpoint 2903 | -7/Garrison | Garrison Relay disabled 3204 | -7/Garrison | Garrison Relay disabled 3319 | -7/Garrison | Discovered new exit (range 15) 3391 | -7/Garrison | Attempted to access garrison exit controls, blocked by remote lockdown 3539 | -7/Garrison | Discovered new exit (range 14) 3559 | -7/Garrison | Attempted to access garrison exit controls, blocked by remote lockdown 3594 | -7/Garrison | Triggered checkpoint 3620 | -7/Garrison | Triggered checkpoint 3660 | -7/Garrison | Garrison Relay disabled 3836 | -7/Garrison | Entered Factory 3836 | -7/Factory | Accompanied by 8 allies 3930 | -7/Factory | Discovered new exit (range 5) 4236 | -7/Factory | First assault squad dispatched 4278 | -7/Factory | Build established: Scavenger-Tank 4455 | -7/Factory | Entered Lower Caves 4536 | -7/Lower Caves | Met a Warlord Commander 4537 | -7/Lower Caves | Learned location of Warlord (-4) 4548 | -7/Lower Caves | Found Encrypted Comm Array 4692 | -7/Lower Caves | Encountered a Warlord checkpoint 4815 | -7/Lower Caves | Learned 4 Factory zone layouts 4846 | -7/Lower Caves | Build established: Tank 4941 | -7/Lower Caves | Learned Factory security intel 5012 | -7/Lower Caves | Discovered new exit (range 11) 5037 | -7/Lower Caves | Entered another Lower Caves area 5150 | -7/Lower Caves | Build established: Mutant 5218 | -7/Lower Caves | A Commander dispatched an escort 5300 | -7/Lower Caves | Discovered new exit (range 5) 5307 | -7/Lower Caves | Entered Data Miner 5307 | -7/Data Miner | Accompanied by 3 allies 5308 | -7/Data Miner | Commander's escort returned to base 5308 | -7/Data Miner | Commander's escort returned to base 5308 | -7/Data Miner | Commander's escort returned to base 5309 | -7/Data Miner | Discovered new exit (range 6) 5333 | -7/Data Miner | Met Data Miner 5380 | -7/Data Miner | Learned location of Section 7 (-2) 5380 | -7/Data Miner | Acquired the access code to Warlord's prototype stash 5396 | -7/Data Miner | Received God Mode back door access code from Data Miner 5450 | -7/Data Miner | Entered Proximity Caves 5530 | -6/Proximity Caves | Spotted B-75 Beast 5532 | -6/Proximity Caves | Escorted by Enhanced Grunt 5552 | -6/Proximity Caves | Destroyed B-75 Beast 5560 | -6/Proximity Caves | Found Prototype Device 5560 | -6/Proximity Caves | Identified Exp. Thermal Shield 5664 | -6/Proximity Caves | Attracted the attention of an 0b10 outpost 5748 | -6/Proximity Caves | Lost 4 parts (1n3u) 6064 | -6/Proximity Caves | Lost 3 parts (1p1u1w) 6088 | -6/Proximity Caves | Identified exit to Factory 6107 | -6/Proximity Caves | Learned location of 1 exit from Factory 6157 | -6/Proximity Caves | Entered Factory 6157 | -6/Factory | Evolved 2 slots: Power x1, Propulsion x1 6158 | -6/Factory | Identified exit to Lower Caves 6214 | -6/Factory | Discovered exit to Lower Caves (range 18) 6289 | -6/Factory | Joined by Warlord Pyro squad 6330 | -6/Factory | Build established: Scavenger-Mutant 6399 | -6/Factory | Incoming investigation squad redirected 6416 | -6/Factory | Garrison activated, responded to threat 6482 | -6/Factory | Lost 3 parts (2n1u) 6592 | -6/Factory | Discovered new exit (range 11) 6670 | -6/Factory | Lost 4 parts (1n1u2w) 6749 | -6/Factory | Lost 4 parts (1p2n1w) 6855 | -6/Factory | Found Hvy. Reflective Plating 7041 | -6/Factory | Joined by Warlord Infantry squad 7314 | -6/Factory | Build established: Mutant 7548 | -6/Factory | Lost 3 parts (1p1n1u) 7870 | -6/Factory | Build established: Scavenger-Mutant 7924 | -6/Factory | Identified exit to Garrison 7924 | -6/Factory | Entered Garrison 7924 | -6/Garrison | Discovered recently destroyed garrison 7942 | -6/Garrison | Found embedded Infiltrators 8035 | -6/Garrison | Garrison Relay disabled 8051 | -6/Garrison | Discovered new exit (range 12) 8102 | -6/Garrison | Rewired Striker 8106 | -6/Garrison | Rewired Striker 8164 | -6/Garrison | Entered Factory 8164 | -6/Factory | Accompanied by 4 allies 8295 | -6/Factory | Fabricated T-07 Excavator (x1) 8329 | -6/Factory | Identified exit to DSF 8334 | -6/Factory | Entered DSF 8334 | -6/DSF | Accompanied by 5 allies 8372 | -6/DSF | Additional patrols routed to DSF 8417 | -6/DSF | Discovered new exit (range 14) 8578 | -6/DSF | Sterilization system engaged 8598 | -6/DSF | Ambient heat levels rising (+10) 8613 | -6/DSF | Ambient heat levels rising (+10) 8619 | -6/DSF | Entered Garrison 8619 | -6/Garrison | Accompanied by 4 allies 8696 | -6/Garrison | Build established: Mutant 8726 | -6/Garrison | Triggered checkpoint 8730 | -6/Garrison | Triggered checkpoint 8730 | -6/Garrison | Triggered checkpoint 8882 | -6/Garrison | Destroyed 9 combat bots 9105 | -6/Garrison | Build established: Scavenger-Mutant 9153 | -6/Garrison | Discovered new exit (range 8) 9322 | -6/Garrison | Garrison Relay disabled 9339 | -6/Garrison | Discovered new exit (range 8) 9352 | -6/Garrison | Spotted B-75 Beast 9355 | -6/Garrison | Spotted B-90 Cyclops 9365 | -6/Garrison | Attempted to access garrison exit controls, blocked by remote lockdown 9464 | -6/Garrison | Attempted to access garrison exit controls, blocked by remote lockdown 9550 | -6/Garrison | Discovered new exit (range 8) 9574 | -6/Garrison | Entered Factory 9574 | -5/Factory | Evolved 2 slots: Propulsion x1, Utility x1 9666 | -5/Factory | Incoming investigation squad redirected 9804 | -5/Factory | Repaired Broken Adv. Phase Shifter 9941 | -5/Factory | Joined by Warlord Ranger squad 10140 | -5/Factory | Discovered new exit (range 4) 10142 | -5/Factory | Discovered new exit (range 15) 10196 | -5/Factory | Discovered new exit (range 10) 10546 | -5/Factory | Joined by Warlord Dakka squad 10695 | -5/Factory | System corruption reached 10% 10729 | -5/Factory | Discovered new exit (range 7) 10829 | -5/Factory | Discovered new exit (range 16) 10846 | -5/Factory | Entered Extension 11168 | -5/Extension | Lost 3 parts (1p1u1w) 11296 | -5/Extension | P-70 Sage assimilated allied D2-CLG(b) 11434 | -5/Extension | Rescued a captive Derelict 11445 | -5/Extension | Rescued a captive Derelict 11504 | -5/Extension | Lost 3 parts (2p1n) 11601 | -5/Extension | Rescued a captive Derelict 11602 | -5/Extension | Rescued a captive Derelict 11611 | -5/Extension | Spotted B-75 Beast 11622 | -5/Extension | Spotted B-75 Beast 11657 | -5/Extension | Rescued a captive Derelict 11658 | -5/Extension | Rescued a captive Derelict 11682 | -5/Extension | Rescued a captive Derelict 11683 | -5/Extension | Rescued a captive Derelict 11797 | -5/Extension | Rescued a captive Derelict 11820 | -5/Extension | Rescued a captive Derelict 11828 | -5/Extension | Rescued A7 11861 | -5/Extension | Rescued a captive Derelict 11872 | -5/Extension | Rescued a captive Derelict 11914 | -5/Extension | Rescued a captive Derelict 11915 | -5/Extension | Rescued a captive Derelict 11929 | -5/Extension | Rescued a captive Derelict 11955 | -5/Extension | Discovered new exit (range 10) 11957 | -5/Extension | Discovered new exit (range 6) 11994 | -5/Extension | Entered Cetus 11994 | -5/Cetus | Accompanied by 12 allies (A7) 11999 | -5/Cetus | Acquired a Cetus Manufacturing Module code from A7 12014 | -5/Cetus | Spotted Cetus Guard 12014 | -5/Cetus | Spotted Cetus Guard 12016 | -5/Cetus | Spotted Cetus Guard 12016 | -5/Cetus | Spotted Cetus Guard 12017 | -5/Cetus | Build established: Scavenger-Skirmisher 12023 | -5/Cetus | Destroyed Cetus Guard 12035 | -5/Cetus | Allies destroyed Cetus Guard 12037 | -5/Cetus | Allies destroyed Cetus Guard 12038 | -5/Cetus | Allies destroyed Cetus Guard 12176 | -5/Cetus | Started Cetus Manufacturing Module 12190 | -5/Cetus | Discovered new exit (range 16) 12201 | -5/Cetus | Manufactured an Enhanced Grunt 12210 | -5/Cetus | Spotted Cetus Guard 12210 | -5/Cetus | Spotted Cetus Guard 12214 | -5/Cetus | Spotted Cetus Guard 12217 | -5/Cetus | Spotted Cetus Guard 12226 | -5/Cetus | Manufactured an Enhanced Grunt 12226 | -5/Cetus | Allies destroyed Cetus Guard 12233 | -5/Cetus | Destroyed Cetus Guard 12243 | -5/Cetus | Allies destroyed Cetus Guard 12245 | -5/Cetus | Allies destroyed Cetus Guard 12251 | -5/Cetus | Manufactured an Enhanced Grunt 12255 | -5/Cetus | Discovered new exit (range 15) 12268 | -5/Cetus | Lost 4 parts (3n1u) 12276 | -5/Cetus | Manufactured an Enhanced Grunt 12276 | -5/Cetus | Met Revision 17 12301 | -5/Cetus | Manufactured an Enhanced Grunt 12412 | -5/Cetus | Build established: Scavenger-Mutant 12467 | -5/Cetus | Escorted A7 to Cetus Mainframe 12542 | -5/Cetus | Entered Archives 12542 | -5/Archives | Accompanied by 11 allies (A7) 12547 | -5/Archives | Received a hacking code to weaken MAIN.C 12620 | -5/Archives | Discovered new exit (range 16) 12716 | -5/Archives | Discovered new exit (range 14) 12890 | -5/Archives | Discovered new exit (range 14) 12902 | -5/Archives | Unable to access archive contents 13079 | -5/Archives | Entered Hub_04(d) 13079 | -5/Hub_04(d) | Accompanied by 10 allies 13225 | -5/Hub_04(d) | Build established: Scavenger-Tank 13357 | -5/Hub_04(d) | Spotted B-75 Beast 13640 | -5/Hub_04(d) | Identified exit to Garrison 13664 | -5/Hub_04(d) | Network Hub disabled 13664 | -5/Hub_04(d) | Network Hub disabled 13670 | -5/Hub_04(d) | Spotted Lightning 13671 | -5/Hub_04(d) | Spotted Lightning 13676 | -5/Hub_04(d) | Spotted Lightning 13679 | -5/Hub_04(d) | Incoming investigation squad redirected 13684 | -5/Hub_04(d) | Incoming assault squad redirected 13723 | -5/Hub_04(d) | Core integrity fell below 50% 13755 | -5/Hub_04(d) | Specialist reinforcements revealed to be Infiltrators 13756 | -5/Hub_04(d) | Discovered new exit (range 8) 13768 | -5/Hub_04(d) | Entered Factory 13768 | -4/Factory | Evolved 2 slots: Utility x2 13771 | -4/Factory | Lost 3 parts (1u2w) 13913 | -4/Factory | Identified exit to Upper Caves 13913 | -4/Factory | Identified exit to Armory 13987 | -4/Factory | Found Prototype Processor 13987 | -4/Factory | Identified Exp. Terrain Scan Processor 14181 | -4/Factory | Build established: Scavenger-Skirmisher 14876 | -4/Factory | Lost 7 parts (1p2n2u2w) 14944 | -4/Factory | Fabricated P-70 Sage? 15034 | -4/Factory | Fabricated P-70 Sage (x2) 15052 | -4/Factory | Sage 7d assimilated hostile H-77 Assassin 15093 | -4/Factory | Build established: Scavenger-Mutant 15097 | -4/Factory | Fabricated H-77 Assassin (x2) 15151 | -4/Factory | Sage 7d assimilated hostile G-67 Veteran 15155 | -4/Factory | Fabricated P-70 Sage (x2) 15164 | -4/Factory | Garrison activated, responded to threat 15212 | -4/Factory | Fabricated P-70 Sage (x2) 15270 | -4/Factory | Fabricated P-70 Sage (x2) 15286 | -4/Factory | Sage 7j assimilated hostile H-77 Assassin 15327 | -4/Factory | Fabricated P-70 Sage (x2) 15383 | -4/Factory | Fabricated P-70 Sage (x2) 15440 | -4/Factory | Fabricated P-70 Sage (x2) 15486 | -4/Factory | Fabricated Adv. Phase Shifter (x1) 15518 | -4/Factory | First assault squad dispatched 15551 | -4/Factory | Fabricated Combat Drone Bay (x1) 15586 | -4/Factory | Found Prototype Slashing Weapon 15635 | -4/Factory | Identified Centrium Greatsword 15671 | -4/Factory | Sage 7o assimilated hostile B-60 Warrior 15734 | -4/Factory | Entered Upper Caves 15734 | -4/Upper Caves | Accompanied by 9 allies 15975 | -4/Upper Caves | Learned location of Testing (-3) 15987 | -4/Upper Caves | Build established: Scavenger-Tank 15992 | -4/Upper Caves | Discovered new exit (range 9) 16120 | -4/Upper Caves | Entered another Upper Caves area 16120 | -4/Upper Caves | Accompanied by 2 allies 16150 | -4/Upper Caves | Learned location of Quarantine (-2) 16230 | -4/Upper Caves | Spotted B-86 Titan 16381 | -4/Upper Caves | Lost 3 parts (1n2u) 16505 | -4/Upper Caves | Discovered new exit (range 8) 16515 | -4/Upper Caves | Entered Warlord 16557 | -4/Warlord | System corruption cleaned by Quarantine Array 16877 | -4/Warlord | Build established: Scavenger-Mutant 17191 | -4/Warlord | Warlord's base attacked by MAIN.C 17199 | -4/Warlord | Met Warlord 17209 | -4/Warlord | Opened Warlord's prototype stash 17220 | -4/Warlord | Found Prototype Device 17220 | -4/Warlord | Identified Exp. Cloaking Device 17227 | -4/Warlord | Found Prototype Processor 17238 | -4/Warlord | Found Prototype Reactor 17238 | -4/Warlord | Identified Vortex Chain Reactor 17426 | -4/Warlord | Warlord forces counterattacked 17432 | -4/Warlord | Spotted B-90 Cyclops 17437 | -4/Warlord | Spotted B-86 Titan 17513 | -4/Warlord | Spotted B-90 Cyclops 17517 | -4/Warlord | Spotted Striker 17526 | -4/Warlord | Spotted Striker 17566 | -4/Warlord | Discovered new exit (range 15) 17584 | -4/Warlord | Entered Proximity Caves 17622 | -3/Proximity Caves | Spotter reported a threat 17779 | -3/Proximity Caves | Spotter reported a threat 18092 | -3/Proximity Caves | Lost 8 parts (1n4u3w) 18093 | -3/Proximity Caves | Discovered new exit (range 13) 18119 | -3/Proximity Caves | Entered Research 18119 | -3/Research | Evolved 2 slots: Utility x2 18375 | -3/Research | Identified exit to Testing 18609 | -3/Research | Found Unknown Launcher 18643 | -3/Research | Identified exit to Research 18669 | -3/Research | Entered another Research area 18669 | -2/Research | Warlord forces began assault on 0b10 18669 | -2/Research | Evolved 2 slots: Power x1, Propulsion x1 18674 | -2/Research | Identified Gamma Bomb Array 18694 | -2/Research | Distinguished unit "Magnificent Bastards" dispatched to help 18694 | -2/Research | Distinguished unit "Magnificent Bastards" dispatched to help 18698 | -2/Research | Lost 4 parts (1n3u) 18764 | -2/Research | Build established: Scavenger-Gladiator 18779 | -2/Research | Research machine network offline 18821 | -2/Research | Met up with Warlord 19228 | -2/Research | Spotted Striker 19236 | -2/Research | Discovered new exit (range 15) 19281 | -2/Research | Entered Access 19281 | -1/Access | Accompanied by 1 ally 19281 | -1/Access | Evolved 2 slots: Power x1, Utility x1 19315 | -1/Access | Energy Cycler disabled 19481 | -1/Access | Identified Exp. Target Analyzer 19994 | -1/Access | Identified exit to Surface 20001 | -1/Access | Spotted B-99 Colossus 20068 | -1/Access | Lost 5 parts (2p1n2u) 20109 | -1/Access | Identified exit to Garrison 20109 | -1/Access | Entered Garrison 20137 | -1/Garrison | Lost 6 parts (1p1n2u2w) 20577 | -1/Garrison | Triggered checkpoint 20590 | -1/Garrison | Spotted B-99 Colossus 20596 | -1/Garrison | Triggered checkpoint 20662 | -1/Garrison | Triggered checkpoint 20673 | -1/Garrison | Released all parts (4) 20674 | -1/Garrison | Core integrity fell below 50% 20685 | -1/Garrison | Core integrity fell below 20% 20691 | -1/Garrison | Discovered new exit (range 10) 20693 | -1/Garrison | Destroyed by S-43 Plague with Heavy Machine Gun Last Messages --------------- 20673_ Wall collapses. 20673_ Penetrated by Slug. 20673_ Slug penetrates Wall. 20673_ Centrium Leg destroyed. 20673_ Penetrated by Slug. 20673_ Adv. Force Field destroyed. 20673_ Penetrated by Slug. 20673_ Released Adv. System Shield. 20673_ Released 0b10 Decoder Chip [Skirmisher]. 20673_ Released Hcp. Storage Unit. 20673_ Released Adv. Targeting Computer. 20674_ Slug penetrates Y-72 Warden. 20674_ Slug penetrates Wall. 20676_ Penetrated by Slug. 20676_ Slug penetrates Wall. 20681_ Slammed into G-73 Enforcer. 20681_ G-73 Enforcer knocked back. 20682_ Slammed into G-73 Enforcer. 20685_ UBFMJ&JXSLLH3DZT>VZSTBOA9 20691_ EXIT=FOUND Map ----- +----------------------------------------------------+ | ????????????????????????# ##?????????######????? | | ????????????????????????# "????????????????????? | | ????????????????????????# #????????????????????? | | ????????????????????????# %#????????????????????? | | ????????????????????????# % #????????????????????? | | ????????????????????????# #????????????????????? | | ????????????????????????# #????????????????????? | | ????????????????????????#g #????????????????????? | | ????????????????????????# s#????????????????????? | | ????????????????????????#g g#????????????????????? | | ?????????????????g??????#s s#????????????????????? | | ?????????????????g??????#ss #????????????????????? | | ?????????????????g??????# #????????????????????? | | ??????????????????# ????# #????????????????????? | | ??????????????????# #### #????????????????????? | | ??????????????????# #????????????????????? | | ??????????????????# #????????????????????? | | ??????????????????####### #????????????????????? | | ????????????????????????# #????????????????????? | | ????????????????######### #????????????????????? | | ??????????#" #????????????????????? | | ????????????????######### #????????????????????? | | ????????????????????????# #????????????????????? | | ????????????????????????# #????????????????????? | | ????????????????????????# #????????????????????? | | ????????????????????????#@ #????????????????????? | | ????????????????????????# #????????????????????? | | ????????????????????????# #????????????????????? | | ????????????????????????# #????????????????????? | | ???????????????????????? #????????????????????? | | ????????????????????????< #????????????????????? | | ???????????????????????? #????????????????????? | | ????????????????????????#####????????????????????? | | ?????????????????????????????????????????????????? | | ?????????????????????????????????????????????????? | | ?????????????????????????????????????????????????? | | ?????????????????????????????????????????????????? | | ?????????????????????????????????????????????????? | | ?????????????????????????????????????????????????? | | ?????????????????????????????????????????????????? | | ?????????????????????????????????????????????????? | | | | | | | | | | | | | | | | | | | +----------------------------------------------------+ Best States ------------- Heat Dissipation 114 Energy Generation 95 Energy Capacity 1190 Matter Stores 300 Matter Capacity 450 Sight Range 22 Robot Scan Range 16 Terrain Scan Density 135 Jamming Range 12 Corruption Block 20 Armor Coverage 675 Resistance: KI 30 Resistance: TH 30 Core Shielding 30 Weapon Cycling 15 Melee Speed Boost 50 Phase Shifting 15 Evasion (%) 70 Targeting Accuracy 8 Core Analysis 6 Recoil Reduction 6 Kinecelleration 30 Offensive Hacking 40 Defensive Hacking 14 Authchip Count 12 Item Schematics ----------------- Combat Drone Bay | -7/Data Miner | Free Lgt. Regenerative Plating | -7/Data Miner | Free Cld. Aerolev Unit | -7/Data Miner | Free Thermal Defense Suite | -7/Data Miner | Free Ion Burst Cannon | -7/Data Miner | Free Hvy. Treads | -7/Data Miner | Free Imp. Dynamic Insulation System | -7/Data Miner | Free Hvy. Phase Cannon | -7/Data Miner | Free Enh. Optical Array | -7/Data Miner | Free Dual-blade Saw | -7/Data Miner | Free Adv. Phase Shifter | -5/Factory | Scanalyzed Adv. System Shield | -5/Extension | Hacked Adv. Hacking Suite | -5/Extension | Hacked Centrium Medium Armor Plating | -4/Factory | Scanalyzed Robot Schematics ------------------ B-48 Gladiator | -7/Data Miner | Free G-47 Trooper | -7/Data Miner | Free R-10 Processor | -7/Data Miner | Free B-60 Warrior | -7/Data Miner | Free H-66 Slayer | -7/Data Miner | Free S-27 Virus | -7/Data Miner | Free H-77 Assassin | -4/Factory | Hacked B-36 Bruiser | -4/Factory | Hacked P-70 Sage | -4/Factory | Hacked Fabricated ------------ T-07 Excavator | x1 | -6/Factory | Preloaded P-70 Sage | x2 | -4/Factory | Authchip P-70 Sage | x2 | -4/Factory | Authchip H-77 Assassin | x2 | -4/Factory | Authchip P-70 Sage | x2 | -4/Factory | Authchip P-70 Sage | x2 | -4/Factory | Authchip P-70 Sage | x2 | -4/Factory | Authchip P-70 Sage | x2 | -4/Factory | Authchip P-70 Sage | x2 | -4/Factory | Authchip P-70 Sage | x2 | -4/Factory | Authchip Adv. Phase Shifter | x1 | -4/Factory | Authchip Combat Drone Bay | x1 | -4/Factory | Authchip Alien Tech Used ----------------- None Achievements -------------- War Machine Challenges ------------ None Game ------ Seed PointClaymoresCapacitor Manual? 0 Play Time 04:14:24 Cumulative 317.9 hours Start 2023.03.12 @ 15:42:12 End 2023.03.13 @ 02:45:57 Sessions 3 Manual Loads 0 Difficulty Rogue Special Mode None Game No. 209 Rogue 186 Adventurer 6 Explorer 17 Win Type - Total 24 Types 16/0/4/1/0/1/1/1/0 Lore% 94 Gallery% 93 Achievement% 77 Wizard Run 0 Options --------- ASCII 0 Keyboard 0 Movement Numpad Keybinds 0 Fullscreen 1 Font 12/Fuzzy Map View 83x54 Tactical HUD 1 Map Filters NONE Filters NONE Steam 1 RUN: d2d72ac7-8626-4f01-bcda-a0198e08bbd1